bitfinex-derivatives/quotes_SOLF0:USTF0_20260222
["timestamp","ask_amount","ask_price","bid_price","bid_amount"]
[1771723295317,8.94554836,85.193,85.151,3.97099236]
[1771723295619,8.94554836,85.192,85.151,3.97099236]
[1771723295810,8.94554836,85.191,85.151,3.97099236]
[1771723296011,8.94554836,85.19,85.151,3.97099236]
[1771723296212,8.94554836,85.189,85.151,3.97099236]
[1771723296510,8.94554836,85.188,85.151,3.97099236]
[1771723296716,8.94554836,85.187,85.151,3.97099236]
[1771723296921,3.74342593,85.196,85.151,3.97099236]
[1771723297220,8.94256823,85.195,85.151,3.97099236]
[1771723297516,8.94256823,85.194,85.151,3.97099236]
[1771723297716,8.94256823,85.193,85.151,3.97099236]
[1771723297917,8.94256823,85.192,85.151,3.97099236]
[1771723298220,8.94256823,85.191,85.151,3.97099236]
[1771723298410,3.74342593,85.196,85.151,3.97099236]
[1771723298614,8.93928273,85.195,85.151,3.97099236]
[1771723298815,8.93928273,85.194,85.151,3.97099236]
[1771723299018,8.93928273,85.193,85.151,3.97099236]
[1771723299311,8.93928273,85.192,85.151,3.97099236]
[1771723299518,3.74342593,85.196,85.151,3.97099236]
[1771723299718,8.93800702,85.195,85.151,3.97099236]
[1771723300016,8.93800702,85.194,85.151,3.97099236]
[1771723300213,8.93800702,85.193,85.151,3.97099236]
[1771723300408,8.93800702,85.192,85.151,3.97099236]
[1771723300610,3.53092561,85.19,85.151,3.97099236]
[1771723301117,3.73370325,85.191,85.151,3.97099236]
[1771723308030,3.53092561,85.19,85.151,3.97099236]
[1771723308331,3.73370325,85.189,85.151,3.97099236]
[1771723325248,3.73370325,85.187,85.151,3.97099236]
[1771723329250,8.93968938,85.186,85.151,3.97099236]
[1771723329450,3.73370325,85.187,85.151,3.97099236]
[1771723329646,8.93991691,85.186,85.151,3.97099236]
[1771723329847,3.73370325,85.187,85.151,3.97099236]
[1771723330050,8.93991691,85.186,85.151,3.97099236]
[1771723330353,8.94168889,85.185,85.151,3.97099236]
[1771723330542,3.73370325,85.187,85.151,3.97099236]
[1771723330749,8.94189031,85.186,85.151,3.97099236]
[1771723330947,8.94189031,85.185,85.151,3.97099236]
[1771723331148,3.73370325,85.187,85.151,3.97099236]
[1771723331345,8.94405538,85.186,85.151,3.97099236]
[1771723331551,8.94405538,85.185,85.151,3.97099236]
[1771723331750,8.94405538,85.184,85.151,3.97099236]
[1771723332049,3.73370325,85.187,85.151,3.97099236]
[1771723332249,8.94422311,85.186,85.151,3.97099236]
[1771723332551,3.73370325,85.187,85.151,3.97099236]
[1771723332751,8.94849298,85.186,85.151,3.97099236]
[1771723332948,8.94849298,85.185,85.151,3.97099236]
[1771723333151,8.94849298,85.184,85.151,3.97099236]
[1771723333351,8.94849298,85.183,85.151,3.97099236]
[1771723333551,8.94849298,85.182,85.151,3.97099236]
[1771723333751,3.73370325,85.187,85.151,3.97099236]
[1771723333952,12.79471653,85.186,85.151,3.97099236]
[1771723334152,3.85252041,85.184,85.151,3.97099236]
[1771723334347,8.94219612,85.183,85.151,3.97099236]
[1771723334549,8.94219612,85.182,85.151,3.97099236]
[1771723334749,3.85252041,85.184,85.151,3.97099236]
[1771723335049,8.94255229,85.183,85.151,3.97099236]
[1771723335250,8.94255229,85.182,85.155,3.99517656]
[1771723335451,3.85252041,85.196,85.155,3.99517656]
[1771723335646,3.85252041,85.189,85.155,3.99517656]
[1771723335850,8.94228838,85.188,85.155,3.99517656]
[1771723336050,8.94228838,85.187,85.155,3.99517656]
[1771723336350,8.94228838,85.186,85.155,3.99517656]
[1771723336548,3.85252041,85.189,85.155,3.99517656]
[1771723336750,8.94265723,85.188,85.155,3.99517656]
[1771723337050,8.94265723,85.187,85.155,3.99517656]
[1771723337253,8.94265723,85.186,85.155,3.99517656]
[1771723337454,3.85252041,85.189,85.155,3.99517656]
[1771723337650,8.94305866,85.188,85.155,3.99517656]
[1771723337850,8.94305866,85.187,85.155,3.99517656]
[1771723338051,8.94305866,85.186,85.155,3.99517656]
[1771723338351,3.85252041,85.189,85.155,3.99517656]
[1771723338549,8.94352981,85.188,85.155,3.99517656]
[1771723338749,8.94352981,85.187,85.155,3.99517656]
[1771723338953,8.94352981,85.186,85.155,3.99517656]
[1771723339154,3.85252041,85.189,85.155,3.99517656]
[1771723339360,8.94354279,85.188,85.155,3.99517656]
[1771723339555,8.94354279,85.187,85.155,3.99517656]
[1771723339855,8.94354279,85.186,85.155,3.99517656]
[1771723340152,3.85252041,85.189,85.155,3.99517656]
[1771723340654,8.94357969,85.188,85.155,3.99517656]
[1771723340856,8.94357969,85.187,85.155,3.99517656]
[1771723341050,8.94357969,85.186,85.155,3.99517656]
[1771723341255,3.85252041,85.189,85.155,3.99517656]
[1771723341550,8.94362601,85.188,85.155,3.99517656]
[1771723341751,8.94362601,85.187,85.155,3.99517656]
[1771723341952,8.94362601,85.186,85.155,3.99517656]
[1771723342150,3.85252041,85.189,85.155,3.99517656]
[1771723342352,8.94358839,85.188,85.155,3.99517656]
[1771723342550,8.94358839,85.187,85.155,3.99517656]
[1771723342851,3.85252041,85.189,85.155,3.99517656]
[1771723352762,3.85252041,85.187,85.155,3.99517656]
[1771723352960,12.79603305,85.186,85.155,3.99517656]
[1771723353159,3.85252041,85.186,85.155,3.99517656]
[1771723355663,3.85252041,85.186,85.142,3.99517656]
[1771723355861,3.85252041,85.179,85.142,3.99517656]
[1771723359864,3.61021886,85.189,85.142,3.99517656]
[1771723360064,12.55411595,85.188,85.142,3.99517656]
[1771723360366,8.94389709,85.187,85.142,3.99517656]
[1771723360562,8.94389709,85.186,85.142,3.99517656]
[1771723360763,8.94389709,85.185,85.142,3.99517656]
[1771723360964,8.94389709,85.184,85.142,3.99517656]
[1771723361163,8.94389709,85.183,85.142,3.99517656]
[1771723361363,8.94389709,85.182,85.142,3.99517656]
[1771723361564,8.94389709,85.181,85.142,3.99517656]
[1771723361758,3.61021886,85.188,85.143,14.39848268]
[1771723362066,3.61021886,85.186,85.144,3.82398268]
[1771723362461,3.61021886,85.186,85.151,3.82398268]
[1771723366766,3.61021886,85.186,85.14,3.52852808]
[1771723366767,3.61021886,85.186,85.141,3.82398268]
[1771723366967,3.61021886,85.184,85.141,3.82398268]
[1771723367164,3.61021886,85.182,85.141,3.82398268]
[1771723367470,12.57496784,85.181,85.141,3.82398268]
[1771723367664,3.61021886,85.181,85.141,3.82398268]
[1771723376579,3.61021886,85.181,85.151,3.82398268]
[1771723391079,3.61021886,85.181,85.134,308.48122851]
[1771723391080,3.80450489,85.21,85.171,3.97769868]
[1771723391281,8.96330875,85.209,85.181,3.97769868]
[1771723391486,3.80450489,85.21,85.181,3.97769868]
[1771723391782,8.95948091,85.209,85.181,3.97769868]
[1771723391977,3.65849504,85.221,85.19,3.52852808]
[1771723392380,3.65849504,85.221,85.19,7.42181187]
[1771723393484,3.65849504,85.221,85.19,3.89328379]
[1771723401591,3.65849504,85.221,85.18,3.52538996]
[1771723402090,3.65849504,85.221,85.18,7.41867375]
[1771723402289,3.65849504,85.221,85.181,3.89328379]
[1771723406196,3.65849504,85.221,85.134,343.72122851]
[1771723406197,3.65849504,85.232,85.191,3.89328379]
[1771723407790,3.65849504,85.242,85.191,3.89328379]
[1771723407994,3.65849504,85.242,85.201,3.89328379]
[1771723412103,3.65849504,85.239,85.201,3.89328379]
[1771723435221,3.84770979,85.238,85.176,3.76607298]
[1771723435427,3.84770979,85.238,85.175,10.5705]
[1771723435428,3.84770979,85.238,85.181,3.76607298]
[1771723435619,3.84770979,85.238,85.191,3.76607298]
[1771723436719,3.84770979,85.236,85.191,3.76607298]
[1771723465551,3.84770979,85.236,85.201,3.59831017]
[1771723465755,3.71147566,85.262,85.22,7.12260057]
[1771723465953,3.71147566,85.26,85.221,3.59831017]
[1771723466249,3.71147566,85.258,85.221,3.59831017]
[1771723466664,3.71147566,85.258,85.212,3.59831017]
[1771723466854,3.71147566,85.256,85.212,3.59831017]
[1771723467153,3.71147566,85.254,85.212,3.59831017]
[1771723471354,3.71147566,85.249,85.201,3.59831017]
[1771723472761,3.71147566,85.247,85.201,3.59831017]
[1771723475858,14.61960903,85.283,85.188,318.10608119]
[1771723475859,3.71147566,85.26,85.221,3.59831017]
[1771723476058,3.5242904,85.27,85.221,3.59831017]
[1771723476059,3.71147566,85.258,85.221,3.59831017]
[1771723476248,3.71147566,85.256,85.221,3.59831017]
[1771723476450,3.71147566,85.254,85.221,3.59831017]
[1771723476854,3.71147566,85.264,85.231,3.59831017]
[1771723477056,8.94802055,85.263,85.231,3.59831017]
[1771723477254,8.94802055,85.262,85.231,3.59831017]
[1771723477459,8.94802055,85.261,85.231,3.59831017]
[1771723477660,8.94802055,85.26,85.231,3.59831017]
[1771723477864,3.71147566,85.264,85.231,3.59831017]
[1771723478062,3.70046532,85.262,85.231,3.59831017]
[1771723478256,10.5582,85.276,85.231,3.59831017]
[1771723478257,3.70046532,85.26,85.231,3.59831017]
[1771723479263,3.70046532,85.269,85.222,3.70798316]
[1771723479464,3.70046532,85.267,85.222,3.70798316]
[1771723479764,3.70046532,85.265,85.222,3.70798316]
[1771723480062,3.70046532,85.263,85.222,3.70798316]
[1771723480264,3.70046532,85.261,85.222,3.70798316]
[1771723493970,3.70046532,85.259,85.211,3.70798316]
[1771723494170,3.70046532,85.269,85.221,3.70798316]
[1771723494878,3.70046532,85.269,85.231,3.70798316]
[1771723495973,3.70046532,85.278,85.231,3.70798316]
[1771723497181,3.70046532,85.272,85.231,3.70798316]
[1771723497476,3.70046532,85.272,85.241,3.70798316]
[1771723500582,3.70046532,85.282,85.241,3.70798316]
[1771723502079,3.70046532,85.282,85.25,7.23227356]
[1771723502283,10.23950041,85.273,85.251,3.70798316]
[1771723503378,4.1e-07,85.273,85.251,3.70798316]
[1771723504182,3.70046532,85.292,85.276,0.49999959]
[1771723504383,3.70046532,85.292,85.261,3.70798316]
[1771723506789,3.70046532,85.292,85.25,3.70798316]
[1771723508391,3.5242904,85.29,85.25,3.70798316]
[1771723508582,3.63336256,85.289,85.25,3.70798316]
[1771723513294,3.63336256,85.289,85.24,3.5242904]
[1771723513594,3.63336256,85.289,85.24,3.62360508]
[1771723514999,3.59829322,85.279,85.24,3.62360508]
[1771723524602,3.59829322,85.279,85.241,3.62360508]
[1771723528707,3.59829322,85.259,85.221,3.62360508]
[1771723534213,3.59829322,85.259,85.211,3.62360508]
[1771723544719,3.59829322,85.259,85.22,7.50541378]
[1771723544920,3.52122202,85.26,85.22,3.98419176]
[1771723544921,3.94876216,85.257,85.22,3.98419176]
[1771723545318,3.94876216,85.257,85.221,3.98419176]
[1771723548219,3.94876216,85.269,85.231,3.98419176]
[1771723548421,3.94876216,85.269,85.24,7.50541378]
[1771723548623,3.94876216,85.269,85.24,3.98419176]
[1771723553925,3.94876216,85.278,85.24,3.98419176]
[1771723554128,9.04139899,85.277,85.24,3.98419176]
[1771723554329,3.94876216,85.278,85.24,3.98419176]
[1771723554530,3.94876216,85.289,85.241,3.98419176]
[1771723554731,12.99060302,85.288,85.241,3.98419176]
[1771723554924,9.04184086,85.287,85.241,3.98419176]
[1771723555230,9.04184086,85.286,85.241,3.98419176]
[1771723555422,9.04184086,85.285,85.241,3.98419176]
[1771723555624,3.94876216,85.288,85.241,3.98419176]
[1771723555924,9.042562,85.287,85.251,3.98419176]
[1771723556116,3.94876216,85.296,85.251,3.98419176]
[1771723556316,12.99003064,85.295,85.251,3.98419176]
[1771723556622,9.04126848,85.294,85.251,3.98419176]
[1771723556817,3.94876216,85.295,85.251,3.98419176]
[1771723557016,9.04121269,85.294,85.251,3.98419176]
[1771723557220,3.94876216,85.295,85.251,3.98419176]
[1771723557429,9.04117185,85.294,85.251,3.98419176]
[1771723557725,3.94876216,85.295,85.251,3.98419176]
[1771723557925,9.04117185,85.294,85.251,3.98419176]
[1771723558226,3.94876216,85.295,85.251,3.98419176]
[1771723558430,3.52122202,85.3,85.251,3.98419176]
[1771723558431,12.98989325,85.294,85.251,3.98419176]
[1771723558725,3.94876216,85.294,85.251,3.98419176]
[1771723578839,7.38265978,85.29,85.251,3.98419176]
[1771723579039,3.86143776,85.289,85.251,3.98419176]
[1771723598143,10.95336985,85.313,85.251,3.98419176]
[1771723598450,3.93945305,85.307,85.261,3.80168836]
[1771723598640,10.95336985,85.317,85.261,3.80168836]
[1771723598641,8.96314055,85.306,85.261,3.80168836]
[1771723598841,3.93945305,85.317,85.234,290.2540723]
[1771723598842,3.93945305,85.317,85.271,3.80168836]
[1771723599151,3.93945305,85.328,85.271,3.80168836]
[1771723599351,3.93945305,85.326,85.271,3.80168836]
[1771723599545,3.52000752,85.33,85.271,3.80168836]
[1771723599546,3.93945305,85.324,85.271,3.80168836]
[1771723599740,3.93945305,85.322,85.271,3.80168836]
[1771723599940,12.90371555,85.321,85.271,3.80168836]
[1771723600147,8.9642625,85.32,85.271,3.80168836]
[1771723600342,3.93945305,85.321,85.271,3.80168836]
[1771723600750,3.93945305,85.321,85.273,3.80168836]
[1771723601049,3.52000752,85.32,85.273,3.80168836]
[1771723601344,3.93945305,85.319,85.273,3.80168836]
[1771723603550,3.93945305,85.319,85.28,3.52000752]
[1771723603744,3.93945305,85.319,85.281,3.80168836]
[1771723610759,3.93945305,85.299,85.261,14.36158836]
[1771723610947,3.93945305,85.299,85.261,3.80168836]
[1771723616858,3.93945305,85.317,85.271,3.80168836]
[1771723620060,3.93945305,85.299,85.251,3.80168836]
[1771723620363,3.93945305,85.289,85.251,3.80168836]
[1771723623769,3.93945305,85.289,85.241,3.80168836]
[1771723624664,3.93945305,85.289,85.251,3.80168836]
[1771723664603,3.93945305,85.289,85.239,3.69459707]
[1771723664808,3.93945305,85.289,85.24,3.51955534]
[1771723665507,3.93945305,85.289,85.24,7.21415241]
[1771723668198,3.93945305,85.289,85.241,3.69459707]
[1771723673011,3.7438322,85.287,85.241,3.69459707]
[1771723673206,3.7438322,85.285,85.241,3.69459707]
[1771723678726,3.7438322,85.279,85.241,3.69459707]
[1771723678931,3.7438322,85.277,85.241,3.69459707]
[1771723684721,3.7438322,85.277,85.234,290.2540723]
[1771723684923,3.7438322,85.277,85.232,3.69459707]
[1771723690232,3.79034824,85.269,85.23,21.44903269]
[1771723690433,3.79034824,85.267,85.211,3.84113106]
[1771723690633,3.79034824,85.265,85.211,3.84113106]
[1771723690835,3.79034824,85.263,85.211,3.84113106]
[1771723692827,14.61960903,85.297,85.199,10.5676]
[1771723692828,3.83226168,85.249,85.2,3.51955534]
[1771723693034,3.83226168,85.249,85.201,3.97910346]
[1771723693541,3.83226168,85.249,85.211,3.97910346]
[1771723695335,3.83226168,85.249,85.22,3.51955534]
[1771723698437,3.83226168,85.249,85.211,3.97910346]
[1771723705245,10.9738329,85.296,85.193,297.78706591]
[1771723705246,3.83226168,85.273,85.231,3.97910346]
[1771723741776,10.9738329,85.294,85.231,3.97910346]
[1771723741977,164.0111,85.395,85.193,332.98706591]
[1771723741978,3.62576337,85.292,85.261,3.95371127]
[1771723742179,8.91496025,85.291,85.261,3.95371127]
[1771723742379,3.62576337,85.292,85.261,3.95371127]
[1771723743072,10.9738329,85.312,85.261,3.95371127]
[1771723743073,3.62576337,85.303,85.27,3.52305878]
[1771723743271,3.62576337,85.301,85.261,3.95371127]
[1771723743471,3.52305878,85.3,85.261,3.95371127]
[1771723743676,3.62576337,85.298,85.261,3.95371127]
[1771723743869,3.62576337,85.296,85.261,3.95371127]
[1771723757597,3.52305878,85.3,85.261,3.95371127]
[1771723758996,3.94567025,85.305,85.261,3.95371127]
[1771723762194,3.52305878,85.3,85.261,3.95371127]
[1771723763898,3.51963742,85.3,85.261,3.95371127]
[1771723765401,3.94567025,85.305,85.261,3.95371127]
[1771723768506,3.51963742,85.3,85.261,3.95371127]
[1771723769506,10.5542,85.308,85.261,3.95371127]
[1771723770000,14.49987025,85.308,85.261,3.95371127]
[1771723770405,3.94567025,85.307,85.261,3.95371127]
[1771723771410,3.51963742,85.3,85.261,3.95371127]
[1771723771603,3.94567025,85.301,85.261,3.95371127]
[1771723771604,3.51963742,85.29,85.261,3.95371127]
[1771723773907,3.94567025,85.301,85.261,3.95371127]
[1771723774105,3.51963742,85.3,85.261,3.95371127]
[1771723774699,7.46530767,85.3,85.261,3.95371127]
[1771723777806,3.94567025,85.3,85.261,3.95371127]
[1771723783706,3.81853157,85.299,85.261,3.95371127]
[1771723783916,8.87670907,85.298,85.261,3.95371127]
[1771723784212,10.554,85.31,85.261,3.95371127]
[1771723784213,8.87670907,85.297,85.261,3.95371127]
[1771723784514,8.87670907,85.296,85.261,3.95371127]
[1771723784714,8.87670907,85.295,85.261,3.95371127]
[1771723784914,8.87670907,85.294,85.261,3.95371127]
[1771723785116,3.81853157,85.302,85.261,3.95371127]
[1771723785310,3.81853157,85.3,85.261,3.95371127]
[1771723785510,3.81853157,85.298,85.261,3.95371127]
[1771723785708,12.69909299,85.297,85.261,3.95371127]
[1771723785922,8.88056142,85.296,85.261,3.95371127]
[1771723786109,8.88056142,85.295,85.261,3.95371127]
[1771723786417,8.88056142,85.294,85.261,3.95371127]
[1771723786712,3.81853157,85.292,85.261,3.95371127]
[1771723788323,8.88983109,85.291,85.261,3.95371127]
[1771723788525,3.81853157,85.292,85.261,3.95371127]
[1771723788719,8.88983109,85.291,85.261,3.95371127]
[1771723788919,3.81853157,85.292,85.261,3.95371127]
[1771723789216,8.88983109,85.291,85.261,3.95371127]
[1771723789417,3.81853157,85.292,85.261,3.95371127]
[1771723789625,8.88986579,85.291,85.261,3.95371127]
[1771723789920,12.40961822,85.29,85.261,3.95371127]
[1771723790125,3.51963742,85.29,85.261,3.95371127]
[1771723790926,3.81853157,85.292,85.261,3.95371127]
[1771723791126,8.89002693,85.291,85.261,3.95371127]
[1771723791319,8.89002693,85.29,85.261,3.95371127]
[1771723791517,3.81853157,85.292,85.261,3.95371127]
[1771723791717,8.89007119,85.291,85.261,3.95371127]
[1771723791917,8.89007119,85.29,85.261,3.95371127]
[1771723792228,3.81853157,85.292,85.261,3.95371127]
[1771723792527,8.89011721,85.291,85.261,3.95371127]
[1771723792728,8.89011721,85.29,85.261,3.95371127]
[1771723792927,3.81853157,85.292,85.261,3.95371127]
[1771723793130,8.89011721,85.291,85.261,3.95371127]
[1771723793325,8.89011721,85.29,85.261,3.95371127]
[1771723793526,8.89011721,85.289,85.261,3.95371127]
[1771723793727,3.81853157,85.292,85.261,3.95371127]
[1771723793928,8.89016509,85.291,85.261,3.95371127]
[1771723794131,8.89016509,85.29,85.261,3.95371127]
[1771723794330,8.89016509,85.289,85.261,3.95371127]
[1771723794627,3.81853157,85.292,85.261,3.95371127]
[1771723794828,8.89023487,85.291,85.261,3.95371127]
[1771723795031,8.89023487,85.29,85.261,3.95371127]
[1771723795331,8.89023487,85.289,85.261,3.95371127]
[1771723795532,3.81853157,85.292,85.261,3.95371127]
[1771723795731,3.81853157,85.29,85.261,3.95371127]
[1771723795932,8.89030803,85.289,85.261,3.95371127]
[1771723796128,3.81853157,85.289,85.241,3.72073996]
[1771723796436,3.81853157,85.279,85.241,3.72073996]
[1771723808541,3.77043692,85.291,85.251,3.6285324]
[1771723809044,14.61960903,85.329,85.25,3.51963742]
[1771723809045,3.77043692,85.305,85.261,3.6285324]
[1771723809343,3.77043692,85.303,85.261,3.6285324]
[1771723811639,3.70357742,85.299,85.251,3.96659725]
[1771723813047,3.70357742,85.297,85.251,3.96659725]
[1771723816952,3.70357742,85.297,85.26,3.51963742]
[1771723817149,3.70357742,85.297,85.261,3.96659725]
[1771723822355,3.70357742,85.323,85.271,3.96659725]
[1771723822655,8.85587373,85.319,85.271,3.96659725]
[1771723822856,8.85587373,85.318,85.271,3.96659725]
[1771723823057,8.85587373,85.317,85.271,3.96659725]
[1771723823360,3.70357742,85.319,85.271,3.96659725]
[1771723823654,8.85307264,85.318,85.271,3.96659725]
[1771723823857,8.85307264,85.317,85.271,3.96659725]
[1771723824153,3.70357742,85.319,85.271,3.96659725]
[1771723824358,8.85094001,85.318,85.271,3.96659725]
[1771723824554,3.70357742,85.319,85.271,3.96659725]
[1771723824854,8.85069905,85.318,85.271,3.96659725]
[1771723825050,3.70357742,85.319,85.271,3.96659725]
[1771723825250,8.85069905,85.318,85.271,3.96659725]
[1771723825555,3.70357742,85.319,85.271,3.96659725]
[1771723825952,3.70357742,85.319,85.262,10.5598]
[1771723825953,3.70357742,85.319,85.281,3.96659725]
[1771723832865,3.70357742,85.337,85.283,3.96659725]
[1771723833052,3.70357742,85.337,85.22,28.93627718]
[1771723833053,3.70357742,85.348,85.301,3.96659725]
[1771723835760,3.70357742,85.339,85.291,3.96659725]
[1771723838359,3.70357742,85.339,85.301,3.92169329]
[1771723840855,3.70357742,85.339,85.253,21.6149044]
[1771723840856,3.9519313,85.365,85.311,3.92169329]
[1771723841263,3.51756042,85.36,85.311,3.92169329]
[1771723841463,3.9519313,85.359,85.311,3.92169329]
[1771723845257,3.9519313,85.384,85.321,3.92169329]
[1771723845463,3.9519313,85.379,85.331,3.92169329]
[1771723846168,3.9519313,85.389,85.341,3.92169329]
[1771723848173,3.9519313,85.369,85.321,3.92169329]
[1771723852168,3.9519313,85.369,85.33,3.51756042]
[1771723853371,3.9519313,85.369,85.321,3.92169329]
[1771723857676,3.9519313,85.369,85.331,3.92169329]
[1771723860777,3.9519313,85.359,85.311,3.92169329]
[1771723861169,3.9519313,85.349,85.311,3.92169329]
[1771723861778,3.9519313,85.339,85.299,3.92169329]
[1771723864979,3.9519313,85.339,85.281,3.92169329]
[1771723865180,3.9519313,85.329,85.281,3.92169329]
[1771723865882,3.9519313,85.319,85.281,3.92169329]
[1771723866079,3.9519313,85.319,85.27,3.51756042]
[1771723866278,3.9519313,85.299,85.255,3.92169329]
[1771723868477,3.93082416,85.289,85.241,3.98115309]
[1771723871778,10.9851234,85.35,85.228,291.49430238]
[1771723871779,3.93082416,85.303,85.251,3.68133816]
[1771723871981,3.93082416,85.303,85.261,3.68133816]
[1771723875279,178.0,85.362,85.228,291.49430238]
[1771723875280,3.69165067,85.326,85.281,3.68133816]
[1771723876483,3.69165067,85.326,85.29,3.51756042]
[1771723877283,3.69165067,85.326,85.281,3.68133816]
[1771723877488,3.69165067,85.326,85.228,291.49430238]
[1771723877489,3.69165067,85.309,85.26,3.51756042]
[1771723877987,3.69165067,85.309,85.26,7.19889858]
[1771723878186,3.69165067,85.309,85.261,3.68133816]
[1771723887294,3.69165067,85.322,85.281,3.68133816]
[1771723888400,3.51885485,85.32,85.27,3.51885485]
[1771723888595,3.69165067,85.319,85.27,3.51885485]
[1771723888791,3.69165067,85.309,85.268,3.68133816]
[1771723892598,3.69165067,85.309,85.27,3.51885485]
[1771723893490,3.69165067,85.309,85.268,3.68133816]
[1771723896104,10.5531,85.317,85.27,3.51885485]
[1771723896306,10.5531,85.317,85.271,3.68133816]
[1771723896501,14.24475067,85.317,85.271,3.68133816]
[1771723896696,3.69165067,85.316,85.271,3.68133816]
[1771723898412,14.47429436,85.315,85.271,3.68133816]
[1771723898814,3.92089436,85.314,85.271,3.68133816]
[1771723905917,3.92089436,85.312,85.271,3.68133816]
[1771723907310,3.92089436,85.329,85.271,3.68133816]
[1771723907618,3.92089436,85.327,85.271,3.68133816]
[1771723907820,3.92089436,85.323,85.271,3.68133816]
[1771723908021,3.92089436,85.321,85.271,3.68133816]
[1771723908219,3.92089436,85.319,85.271,3.68133816]
[1771723908420,8.91498567,85.318,85.271,3.68133816]
[1771723908623,12.83588003,85.317,85.271,3.68133816]
[1771723908822,8.91498567,85.316,85.271,3.68133816]
[1771723909019,3.92089436,85.317,85.271,3.68133816]
[1771723909223,10.5522,85.324,85.271,3.68133816]
[1771723909224,3.92089436,85.315,85.271,3.68133816]
[1771723910323,3.92089436,85.313,85.271,3.68133816]
[1771723911818,3.51885485,85.32,85.271,3.68133816]
[1771723911819,10.5522,85.324,85.271,3.68133816]
[1771723912127,8.92348573,85.323,85.281,3.63300848]
[1771723912325,8.92348573,85.322,85.281,3.63300848]
[1771723912525,10.5522,85.324,85.281,3.63300848]
[1771723912526,8.92348573,85.321,85.281,3.63300848]
[1771723912822,10.5522,85.324,85.281,3.63300848]
[1771723913016,3.92089436,85.33,85.281,3.63300848]
[1771723913017,8.9227378,85.323,85.281,3.63300848]
[1771723913220,8.9227378,85.322,85.281,3.63300848]
[1771723913416,8.9227378,85.321,85.281,3.63300848]
[1771723913627,3.92089436,85.33,85.281,3.63300848]
[1771723913827,8.92337168,85.329,85.281,3.63300848]
[1771723914125,3.92089436,85.33,85.281,3.63300848]
[1771723914126,8.92337168,85.328,85.281,3.63300848]
[1771723914325,8.92337168,85.327,85.281,3.63300848]
[1771723914529,3.92089436,85.33,85.281,3.63300848]
[1771723914727,8.92512641,85.329,85.29,3.51885485]
[1771723914930,8.92512641,85.328,85.29,3.51885485]
[1771723915229,8.92512641,85.327,85.29,3.51885485]
[1771723915423,8.92512641,85.326,85.29,3.51885485]
[1771723915723,8.92512641,85.325,85.281,3.63300848]
[1771723915922,8.92512641,85.324,85.281,3.63300848]
[1771723916117,8.92512641,85.323,85.281,3.63300848]
[1771723916326,8.92512641,85.322,85.281,3.63300848]
[1771723916526,8.92512641,85.321,85.281,3.63300848]
[1771723916726,8.92512641,85.32,85.281,3.63300848]
[1771723916927,8.92512641,85.319,85.281,3.63300848]
[1771723917132,3.92089436,85.33,85.281,3.63300848]
[1771723917322,3.92089436,85.328,85.281,3.63300848]
[1771723917519,8.92936765,85.327,85.281,3.63300848]
[1771723917727,8.92936765,85.326,85.281,3.63300848]
[1771723917930,8.92936765,85.325,85.281,3.63300848]
[1771723918233,8.92936765,85.324,85.281,3.63300848]
[1771723918424,8.92936765,85.323,85.281,3.63300848]
[1771723918631,8.92936765,85.322,85.281,3.63300848]
[1771723918831,8.92936765,85.321,85.281,3.63300848]
[1771723919034,3.92089436,85.327,85.281,3.63300848]
[1771723919237,12.84989306,85.326,85.281,3.63300848]
[1771723919533,8.9289987,85.325,85.281,3.63300848]
[1771723919733,8.9289987,85.324,85.281,3.63300848]
[1771723919934,8.9289987,85.323,85.281,3.63300848]
[1771723920134,8.9289987,85.322,85.281,3.63300848]
[1771723920336,8.9289987,85.321,85.281,3.63300848]
[1771723920535,3.92089436,85.326,85.281,3.63300848]
[1771723920736,12.84978446,85.325,85.281,3.63300848]
[1771723921038,8.9288901,85.324,85.281,3.63300848]
[1771723921337,8.9288901,85.323,85.281,3.63300848]
[1771723921537,8.9288901,85.322,85.281,3.63300848]
[1771723921834,8.9288901,85.321,85.281,3.63300848]
[1771723922034,8.9288901,85.32,85.281,3.63300848]
[1771723922234,8.9288901,85.319,85.281,3.63300848]
[1771723922538,3.92089436,85.325,85.281,3.63300848]
[1771723922740,12.85041986,85.324,85.281,3.63300848]
[1771723922938,8.9295255,85.323,85.281,3.63300848]
[1771723923139,8.9295255,85.322,85.281,3.63300848]
[1771723923439,12.85041986,85.321,85.281,3.63300848]
[1771723923643,8.9295255,85.32,85.281,3.63300848]
[1771723923837,8.9295255,85.319,85.281,3.63300848]
[1771723924139,3.92089436,85.321,85.281,3.63300848]
[1771723924340,8.92863955,85.32,85.281,3.63300848]
[1771723924543,8.92863955,85.319,85.281,3.63300848]
[1771723924737,3.92089436,85.321,85.281,3.63300848]
[1771723924937,8.92863769,85.32,85.281,3.63300848]
[1771723925141,3.92089436,85.321,85.281,3.63300848]
[1771723925438,8.92829833,85.32,85.281,3.63300848]
[1771723925641,3.92089436,85.321,85.281,3.63300848]
[1771723925847,8.92829833,85.32,85.281,3.63300848]
[1771723926043,3.92089436,85.321,85.281,3.63300848]
[1771723926236,8.92801197,85.32,85.281,3.63300848]
[1771723926546,3.92089436,85.321,85.281,3.63300848]
[1771723926745,8.92801197,85.32,85.281,3.63300848]
[1771723927040,3.92089436,85.321,85.281,3.63300848]